bitfinex/quotes_SOLUSD_20220302
["timestamp","ask_amount","ask_price","bid_price","bid_amount"]
[1646238369879,8.14007631,101.91,101.83,47.81228092]
[1646238370079,8.14007631,101.91,101.83,48.06228092]
[1646238370282,8.14007631,101.91,101.83,50.61132095]
[1646238370881,8.14007631,101.91,101.83,148.63132095]
[1646238371080,22.87417631,101.91,101.83,148.63132095]
[1646238371688,2.71902526,101.89,101.83,148.63132095]
[1646238371882,2.71902526,101.89,101.83,50.61132095]
[1646238372282,52.0645,101.92,101.84,11.73]
[1646238372583,47.0645,101.92,101.84,11.98]
[1646238372784,5.0,101.95,101.84,14.52904003]
[1646238372981,5.0,101.95,101.84,87.24454516]
[1646238373182,9.30177955,101.94,101.85,56.36652021]
[1646238373382,9.30177955,101.94,101.87,51.76237758]
[1646238373581,9.30177955,101.94,101.87,52.01237758]
[1646238373982,52.4877,101.96,101.87,150.03237758]
[1646238374183,5.0,101.96,101.87,164.31141761]
[1646238374385,5.0,101.96,101.87,185.56932274]
[1646238374983,5.0,101.96,101.9,54.88152276]
[1646238375184,6.0,101.95,101.9,66.86152276]
[1646238376285,6.0,101.95,101.92,153.94789021]
[1646238376484,6.0,101.95,101.93,0.12410205]
[1646238376684,14.721,102.0,101.93,0.12410205]
[1646238376882,5.0,101.99,101.93,0.12410205]
[1646238378086,6.0,101.98,101.94,56.58282759]
[1646238378284,5.0,101.99,101.94,56.58282759]
[1646238378486,5.0,101.99,101.94,56.83282759]
[1646238378684,5.0,101.99,101.94,68.56282759]
[1646238379383,54.6773,102.01,101.94,68.56282759]
[1646238379784,2.11133091,102.0,101.94,68.56282759]
[1646238380685,7.11133091,102.0,101.94,68.56282759]
[1646238380884,5.0,102.0,101.94,68.56282759]
[1646238381285,5.0,102.0,101.94,166.58282759]
[1646238381687,23.9635,102.04,101.94,166.58282759]
[1646238381888,16.32707377,102.03,101.95,2.54904003]
[1646238382087,16.32707377,102.03,101.96,67.24401737]
[1646238382289,16.32707377,102.03,101.96,67.49401737]
[1646238382589,0.5320278,102.01,101.96,67.49401737]
[1646238382887,0.5320278,102.01,101.96,11.73]
[1646238384089,15.2508278,102.01,101.96,69.9076337]
[1646238384288,14.7188,102.01,101.96,69.9076337]
[1646238384489,6.0,102.03,101.96,69.9076337]
[1646238385291,6.0,102.03,101.96,167.9276337]
[1646238385490,29.59148342,102.03,101.96,167.9276337]
[1646238385689,14.87458342,102.03,101.96,168.1776337]
[1646238385891,14.87458342,102.03,101.96,70.1576337]
[1646238388113,6.0,102.03,101.96,168.1776337]
[1646238388312,6.0,102.03,101.96,170.72667373]
[1646238388514,6.0,102.03,101.96,72.70667373]
[1646238389015,13.60549267,102.03,101.96,72.70667373]
[1646238389814,6.0,102.03,101.96,170.72667373]
[1646238390314,6.0,102.03,101.96,168.1776337]
[1646238390715,14.28133052,102.03,101.96,168.1776337]
[1646238391117,5.0,102.04,101.96,170.72667373]
[1646238392015,15.33648445,102.04,101.96,170.72667373]
[1646238393317,5.0,102.04,101.96,170.72667373]
[1646238393720,5.0,102.04,101.98,98.02]
[1646238393917,5.0,102.04,101.99,11.73]
[1646238394116,5.0,102.04,101.99,11.98]
[1646238394319,10.5394611,102.03,101.99,11.98]
[1646238395018,10.5394611,102.03,101.99,11.73]
[1646238395218,10.5394611,102.03,101.97,11.73]
[1646238395419,10.5394611,102.03,101.95,11.73]
[1646238395618,6.0,102.02,101.95,11.73]
[1646238396018,11.0,102.02,101.95,63.39581547]
[1646238396221,25.7174,102.02,101.95,11.73]
[1646238396418,11.0,102.02,101.95,11.73]
[1646238396618,11.0,102.02,101.93,59.998]
[1646238396819,6.0,102.02,101.93,59.998]
[1646238397018,11.0,102.02,101.93,59.998]
[1646238397218,11.0,102.02,101.93,110.48853951]
[1646238397419,11.0,102.02,101.93,208.50853951]
[1646238397619,14.719,102.01,101.93,208.75853951]
[1646238398321,14.719,102.01,101.93,110.73853951]
[1646238399120,6.0,102.0,101.93,110.73853951]
[1646238399319,6.0,102.0,101.93,208.75853951]
[1646238400520,54.8040611,102.03,101.93,208.75853951]
[1646238400720,6.0,102.02,101.93,208.75853951]
[1646238401120,6.0,102.02,101.93,110.73853951]
[1646238401324,6.0,102.02,101.93,208.75853951]
[1646238401622,6.0,102.02,101.93,110.73853951]
[1646238402321,6.0,102.02,101.93,208.75853951]
[1646238402520,6.0,102.02,101.93,110.73853951]
[1646238403121,20.7175,102.02,101.93,113.28757954]
[1646238403321,20.7175,102.02,101.93,211.30757954]
[1646238404125,20.7175,102.02,101.93,113.28757954]
[1646238404522,20.7175,102.02,101.93,211.30757954]
[1646238404925,14.7188,102.01,101.93,110.73853951]
[1646238405123,14.7188,102.01,101.93,60.248]
[1646238405323,1.34681884,102.02,101.93,60.248]
[1646238405523,1.34681884,102.02,101.93,59.998]
[1646238405726,1.34681884,102.01,101.93,60.248]
[1646238405923,1.34681884,102.01,101.93,11.73]
[1646238406123,14.7201,102.0,101.89,36.6048]
[1646238406324,1.6007936,101.99,101.89,36.8548]
[1646238406526,1.34681884,101.99,101.89,36.6048]
[1646238406728,6.34681884,101.99,101.89,36.6048]
[1646238406925,1.34681884,101.98,101.89,11.73]
[1646238407125,6.34681884,101.99,101.89,60.65839901]
[1646238407325,14.7262,101.96,101.89,11.73]
[1646238407926,14.7262,101.96,101.89,11.98]
[1646238408328,30.78441884,101.98,101.89,11.98]
[1646238408527,30.78441884,101.98,101.89,0.25]
[1646238408727,30.78441884,101.98,101.88,53.60035637]
[1646238408927,14.7275,101.95,101.88,65.33035637]
[1646238409229,30.3552,101.97,101.88,65.33035637]
[1646238409628,30.3552,101.97,101.88,163.35035637]
[1646238409831,30.3552,101.97,101.88,65.33035637]
[1646238410029,45.0807,101.97,101.88,65.33035637]
[1646238410229,30.3552,101.97,101.88,65.33035637]
[1646238410434,30.3552,101.97,101.88,163.35035637]
[1646238411332,14.7276,101.95,101.88,11.73]
[1646238411930,30.3552,101.97,101.88,11.73]
[1646238412330,30.3552,101.97,101.89,147.14019948]
[1646238412531,30.3552,101.97,101.89,60.85019948]
[1646238412830,45.0806,101.97,101.89,61.10019948]
[1646238413030,45.0806,101.97,101.89,63.64923951]
[1646238413230,45.0806,101.97,101.89,61.10019948]
[1646238413535,45.0806,101.97,101.89,159.12019948]
[1646238413730,6.0,101.97,101.89,159.12019948]
[1646238413932,6.0,101.97,101.89,161.66923951]
[1646238414131,29.3468,102.0,101.89,161.66923951]
[1646238414533,29.3468,102.0,101.91,98.02]
[1646238414732,29.3468,102.0,101.92,162.03150363]
[1646238414933,29.3468,102.0,101.92,162.28150363]
[1646238415135,44.067,102.0,101.92,162.28150363]
[1646238415536,5.0,102.0,101.93,2.54904003]
[1646238415738,5.0,102.0,101.94,68.59963826]
[1646238415935,59.97787994,102.03,101.94,68.84963826]
[1646238416136,5.0,102.02,101.94,68.84963826]
[1646238416738,6.34681884,102.02,101.94,68.84963826]
[1646238417038,19.7184,102.02,101.94,68.84963826]
[1646238417637,6.0,102.01,101.94,68.84963826]
[1646238418041,20.7188,102.01,101.94,68.84963826]
[1646238419444,20.7188,102.01,101.94,11.73]
[1646238419747,14.7202,102.0,101.92,24.6237]
[1646238419944,14.7202,102.0,101.92,36.6037]
[1646238420366,14.7202,102.0,101.92,36.3537]
[1646238420663,16.06701884,102.0,101.92,24.6237]
[1646238421363,14.7231,101.98,101.91,11.73]
[1646238422168,14.7231,101.98,101.92,48.54154319]
[1646238422665,14.7231,101.98,101.92,48.79154319]
[1646238423269,14.7231,101.98,101.93,11.73]
[1646238423466,14.7231,101.98,101.92,60.52154319]
[1646238423866,29.8654,101.99,101.92,158.54154319]
[1646238424666,29.8654,101.99,101.92,60.52154319]
[1646238424867,44.5871,101.99,101.92,60.52154319]
[1646238425665,6.0,101.99,101.92,158.54154319]
[1646238425867,5.0,102.0,101.92,161.09058322]
[1646238426466,5.0,102.0,101.92,158.54154319]
[1646238426666,5.0,102.0,101.92,60.52154319]
[1646238427266,14.7203,102.0,101.92,60.52154319]
[1646238428068,6.0,101.99,101.92,60.52154319]
[1646238428268,20.7228,101.99,101.92,11.98]
[1646238428665,20.7228,101.99,101.92,11.73]
[1646238428866,20.7228,101.99,101.9,11.73]
[1646238429065,55.0877,101.99,101.9,11.73]
[1646238429266,55.0877,101.99,101.88,57.90948202]
[1646238429267,3.08552617,101.98,101.88,57.90948202]
[1646238429868,3.08552617,101.98,101.88,61.83348202]
[1646238430170,14.7274,101.95,101.88,62.08348202]
[1646238430369,14.7274,101.95,101.88,58.15948202]
[1646238431770,23.9475,101.97,101.88,58.15948202]
[1646238431971,38.6729,101.97,101.9,59.07800323]
[1646238432172,38.6729,101.97,101.9,71.05800323]
[1646238433172,6.0,101.96,101.9,71.05800323]
[1646238433572,6.0,101.96,101.9,11.73]
[1646238433773,6.0,101.96,101.88,11.73]
[1646238433972,6.0,101.96,101.87,36.592]
[1646238434474,11.0,101.96,101.87,36.592]
[1646238434676,11.0,101.96,101.88,49.92588623]
[1646238435974,11.0,101.96,101.87,24.862]
[1646238436175,61.44941884,101.96,101.87,24.862]
[1646238436476,7.34681884,101.96,101.86,22.5081]
[1646238436673,1.34681884,101.95,101.86,22.5081]
[1646238437075,1.34681884,101.95,101.86,73.81634581]
[1646238437276,5.0,101.94,101.86,73.81634581]
[1646238437475,14.7332,101.91,101.85,3.924]
[1646238437677,24.1995,101.93,101.83,28.7815]
[1646238437878,24.1995,101.93,101.83,36.5855]
[1646238438377,29.1995,101.93,101.84,49.23227373]
[1646238438678,49.121,101.92,101.82,11.73]
[1646238438876,24.1995,101.93,101.82,11.73]
[1646238439076,24.1995,101.93,101.81,36.1195]
[1646238439277,27.28502617,101.93,101.81,36.1195]
[1646238439477,5.0,101.92,101.81,36.1195]
[1646238439678,27.28502617,101.93,101.82,60.56523428]
[1646238439877,5.0,101.9,101.82,60.56523428]
[1646238440077,14.7376,101.88,101.82,60.56523428]
[1646238440579,6.0,101.87,101.82,60.56523428]
[1646238440776,6.0,101.87,101.82,158.58523428]
[1646238440979,27.7685,101.9,101.82,172.86427431]
[1646238441179,6.0,101.89,101.82,173.11427431]
[1646238441981,22.7685,101.9,101.82,173.11427431]
[1646238442382,23.2981,101.92,101.82,74.84427431]
[1646238442582,6.0,101.91,101.82,72.29523428]
[1646238443085,6.0,101.91,101.82,170.31523428]
[1646238443282,6.0,101.91,101.82,72.29523428]
[1646238443684,6.0,101.91,101.82,170.56523428]
[1646238445086,30.5724,101.91,101.82,170.56523428]
[1646238445487,45.3059,101.91,101.82,170.31523428]
[1646238446687,45.3059,101.91,101.82,72.29523428]
[1646238446888,14.7348,101.9,101.82,72.29523428]
[1646238447289,24.5724,101.91,101.82,72.29523428]
[1646238447790,26.31765802,101.91,101.82,60.56523428]
[1646238449092,14.7377,101.88,101.82,60.56523428]
[1646238450095,19.7357,101.9,101.82,60.56523428]
[1646238450291,19.7357,101.9,101.82,72.29523428]
[1646238450492,14.7357,101.9,101.82,72.29523428]
[1646238450991,6.0,101.89,101.82,72.54523428]
[1646238451593,20.7362,101.89,101.82,72.54523428]
[1646238452292,20.7362,101.89,101.82,170.56523428]
[1646238452495,6.0,101.89,101.84,53.77885866]
[1646238452693,24.5724,101.91,101.84,53.77885866]
[1646238452895,14.7347,101.9,101.84,53.77885866]
[1646238454494,24.5724,101.91,101.84,54.02885866]
[1646238454695,24.5724,101.91,101.84,152.04885866]
[1646238454893,24.5724,101.91,101.84,65.75885866]
[1646238455796,38.0308,101.92,101.84,163.77885866]
[1646238455995,5.0,101.93,101.84,166.32789869]
[1646238456194,6.0,101.92,101.84,166.32789869]
[1646238458096,14.7354,101.9,101.84,11.73]
[1646238458298,50.86305802,101.92,101.84,11.73]
[1646238458497,5.0,101.91,101.82,34.4389]
[1646238458795,12.00451779,101.92,101.82,11.73]
[1646238458996,5.0,101.9,101.82,11.73]
[1646238459196,5.0,101.9,101.81,46.62635168]
[1646238459798,5.0,101.9,101.81,58.35635168]
[1646238459997,14.739,101.87,101.81,58.35635168]
[1646238461628,14.739,101.87,101.81,46.62635168]
[1646238465131,14.739,101.87,101.8,35.019]
[1646238465630,20.7416,101.86,101.8,23.289]
[1646238466233,20.7416,101.86,101.8,72.56386178]
[1646238467533,20.7416,101.86,101.79,3.927]
[1646238467733,20.7416,101.86,101.77,35.2814]
[1646238468337,14.7448,101.83,101.77,35.2814]
[1646238468536,14.7448,101.83,101.78,47.8919221]
[1646238469336,6.0,101.82,101.78,47.8919221]
[1646238470637,6.0,101.84,101.78,148.71096213]
[1646238470838,6.0,101.84,101.78,54.61896213]
[1646238471038,6.0,101.84,101.78,66.34896213]
[1646238471839,19.7429,101.85,101.78,66.34896213]
[1646238472640,19.7429,101.85,101.78,72.80796213]
[1646238472841,45.7471,101.86,101.79,98.02]
[1646238473042,24.35061884,101.91,101.81,98.02]
[1646238473244,47.0526,101.91,101.82,167.64671913]
[1646238473444,24.0488,101.91,101.82,167.89671913]
[1646238473643,24.0488,101.91,101.82,174.37175916]
[1646238473944,24.0488,101.91,101.83,2.54904003]
[1646238474146,6.0,101.9,101.84,60.03821346]
[1646238474343,6.0,101.9,101.84,60.28821346]
[1646238475243,6.0,101.9,101.84,60.15628946]
[1646238475444,6.0,101.9,101.84,158.17628946]
[1646238475845,14.7341,101.91,101.84,60.15628946]
[1646238476247,14.7341,101.91,101.84,59.90628946]
[1646238476651,14.7341,101.91,101.84,60.15628946]
[1646238477349,14.7341,101.91,101.85,3.926]
[1646238477350,23.17385515,101.91,101.85,3.926]
[1646238477548,23.17385515,101.91,101.86,51.96233267]
[1646238477848,14.7341,101.91,101.86,51.96233267]
[1646238478047,6.0,101.9,101.86,51.96233267]
[1646238479049,6.0,101.9,101.85,15.656]
[1646238479450,6.0,101.9,101.85,15.906]
[1646238479849,6.0,101.9,101.85,11.98]
[1646238480050,6.0,101.9,101.85,65.42860371]
[1646238482355,14.7313,101.93,101.85,165.74764374]
[1646238482554,5.0,101.94,101.85,165.99764374]
[1646238482754,5.0,101.94,101.86,3.924]
[1646238482955,5.0,101.94,101.87,63.77418301]
[1646238483157,5.0,101.94,101.87,73.12518301]
[1646238483356,32.33460108,101.95,101.87,73.12518301]
[1646238484157,20.729,101.94,101.87,73.12518301]
[1646238484358,20.729,101.94,101.87,64.02418301]
[1646238484857,20.729,101.94,101.87,162.04418301]
[1646238485058,20.729,101.94,101.87,64.02418301]
[1646238485659,20.729,101.94,101.87,70.49722304]
[1646238485957,6.0,101.94,101.87,168.51722304]
[1646238486157,23.7442,101.95,101.87,168.51722304]
[1646238486758,31.74968192,101.95,101.87,168.51722304]
[1646238487157,31.74968192,101.95,101.87,164.59322304]
[1646238489083,46.47718192,101.95,101.87,164.59322304]
[1646238489281,46.47718192,101.95,101.87,164.34322304]
[1646238489685,6.0,101.94,101.87,164.34322304]
[1646238490284,6.0,101.94,101.87,168.26722304]
[1646238490582,6.0,101.94,101.87,168.51722304]
[1646238491286,2.98554365,101.93,101.87,15.654]
[1646238491491,2.98554365,101.93,101.87,11.98]
[1646238491694,2.98554365,101.93,101.87,0.25]
[1646238491885,2.98554365,101.93,101.86,32.8166]
[1646238492084,2.98554365,101.93,101.86,32.5666]
[1646238492285,2.98554365,101.93,101.87,45.38134963]
[1646238492685,14.7305,101.93,101.87,45.63134963]
[1646238493084,6.0,101.92,101.87,45.63134963]
[1646238495187,6.0,101.92,101.87,155.38134963]
[1646238495388,43.4726,101.95,101.88,2.54904003]
[1646238495587,6.0,101.94,101.88,2.79904003]
[1646238495986,6.0,101.94,101.89,45.769563]
[1646238496186,6.0,101.94,101.89,146.58860303]
[1646238496387,24.9646,101.96,101.89,146.58860303]
[1646238496388,24.9646,101.96,101.9,2.54904003]
[1646238496586,6.0,101.95,101.91,11.73]
[1646238496788,6.0,101.95,101.91,11.98]
[1646238496991,6.0,101.95,101.91,110.0]
[1646238497287,59.6385681,102.0,101.92,148.7353488]
[1646238497488,14.7226,101.99,101.92,62.6953488]
[1646238497889,14.7226,101.99,101.92,160.7153488]
[1646238498087,14.7226,101.99,101.92,62.6953488]
[1646238498987,0.43235747,101.98,101.92,62.4453488]
[1646238499188,14.7252,101.97,101.92,62.6953488]
[1646238499389,8.67994138,101.96,101.92,0.25]
[1646238499593,8.67994138,101.96,101.9,11.73]
[1646238499793,8.67994138,101.96,101.9,11.98]
[1646238499991,6.0,101.95,101.9,11.98]
[1646238500392,6.0,101.95,101.91,53.91835284]
[1646238500595,6.0,101.95,101.91,54.16835284]
[1646238500993,6.0,101.95,101.9,11.73]
[1646238501193,6.0,101.95,101.9,11.98]
[1646238501398,6.0,101.95,101.9,11.73]
[1646238501593,6.0,101.95,101.9,11.98]
[1646238501994,6.0,101.95,101.91,44.55281231]
[1646238502394,6.0,101.95,101.91,56.28281231]
[1646238504599,14.7242,101.98,101.91,56.53281231]
[1646238504998,24.49614552,101.98,101.91,56.53281231]
[1646238505199,24.49614552,101.98,101.91,56.28281231]
[1646238505799,24.49614552,101.98,101.91,11.73]
[1646238506799,24.49614552,101.98,101.92,54.51786754]
[1646238508001,6.0,101.97,101.92,54.51786754]
[1646238508202,14.7256,101.97,101.92,54.51786754]
[1646238508402,28.3983,101.99,101.92,54.51786754]
[1646238508603,23.3983,101.99,101.92,66.49786754]
[1646238509201,33.2113729,101.99,101.92,66.49786754]
[1646238509501,23.3983,101.99,101.92,164.51786754]
[1646238509702,6.34681884,102.01,101.92,164.51786754]
[1646238509906,19.7195,102.01,101.93,2.54904003]
[1646238510103,14.7195,102.01,101.94,109.75]
[1646238510303,14.7195,102.01,101.94,110.0]
[1646238510502,23.60209102,102.01,101.95,44.74235128]
[1646238510805,23.60209102,102.01,101.95,56.72235128]
[1646238511703,23.60209102,102.01,101.95,56.47235128]
[1646238511903,14.7204,102.0,101.95,56.47235128]
[1646238512603,54.12151884,102.02,101.95,56.47235128]
[1646238512805,54.12151884,102.02,101.95,154.49235128]
[1646238513005,47.7747,102.02,101.95,154.74235128]
[1646238513205,6.0,102.01,101.95,56.72235128]
[1646238513806,6.0,102.01,101.95,154.74235128]
[1646238514308,6.0,102.01,101.95,56.72235128]
[1646238515406,6.0,102.01,101.95,154.74235128]
[1646238515606,5.0,102.03,101.96,2.54904003]
[1646238515810,5.0,102.03,101.97,109.75]
[1646238516006,5.0,102.03,101.97,110.0]
[1646238516209,5.0,102.03,101.98,50.13442135]
[1646238516508,6.77433218,102.03,101.99,11.73]
[1646238517510,21.49063218,102.03,101.99,11.73]
[1646238517710,6.0,102.02,101.97,11.73]
[1646238518508,9.01437373,102.01,101.97,11.73]
[1646238519509,6.0,102.02,101.97,11.73]
[1646238519909,6.0,102.02,101.94,3.92]
[1646238520113,6.0,102.04,101.92,15.652]
[1646238520309,6.74535426,102.01,101.92,11.73]
[1646238520510,27.8056,102.01,101.91,38.2449]
[1646238520710,50.04168953,102.01,101.91,22.5929]
[1646238520912,3.94156316,102.0,101.91,76.31312201]
[1646238521111,3.94156316,102.0,101.91,22.5929]
[1646238521309,26.17765269,102.0,101.91,22.5929]
[1646238521714,40.89795269,102.0,101.9,11.73]
[1646238521912,27.92300695,102.0,101.9,11.73]
[1646238522313,24.0942,101.99,101.9,11.73]
[1646238522511,24.0942,101.99,101.87,3.923]
[1646238522512,0.28441379,101.98,101.87,3.923]
[1646238522717,2.02976805,101.98,101.87,11.73]
[1646238522914,9.57976805,101.98,101.87,11.73]
[1646238523112,31.81585758,101.98,101.87,11.73]
[1646238523312,24.64954058,101.97,101.87,60.6022921]
[1646238523512,24.64954058,101.97,101.87,11.73]
[1646238523513,0.28441379,101.96,101.87,11.73]
[1646238523716,2.02976805,101.96,101.86,3.924]
[1646238523914,1.74535426,101.95,101.85,23.911]
[1646238524115,6.0,101.94,101.85,23.911]
[1646238524516,3.27971212,101.93,101.86,57.41143388]
[1646238525119,14.7335,101.91,101.86,57.41143388]
[1646238525320,49.1116,101.94,101.86,57.41143388]
[1646238525520,49.1116,101.94,101.86,69.14143388]
[1646238526117,14.7333,101.91,101.86,69.14143388]
[1646238526316,14.7333,101.91,101.85,23.911]
[1646238526317,49.1116,101.94,101.84,11.73]
[1646238526517,5.0,101.95,101.84,11.98]
[1646238526518,49.1168,101.93,101.84,11.98]
[1646238527420,3.36611515,101.92,101.85,56.01305376]
[1646238528023,14.7348,101.9,101.85,56.01305376]
[1646238528424,15.78138859,101.9,101.85,56.01305376]
[1646238528625,6.0,101.89,101.85,56.01305376]
[1646238528826,6.0,101.89,101.84,11.73]
[1646238529024,14.7393,101.87,101.81,27.8018]
[1646238529239,14.7393,101.87,101.79,15.657]
[1646238529439,14.7393,101.87,101.79,11.73]
[1646238529840,14.7393,101.87,101.8,52.01034221]
[1646238530039,14.7393,101.87,101.8,161.76034221]
[1646238530239,5.0,101.88,101.8,161.76034221]
[1646238530442,5.0,101.88,101.81,3.927]
[1646238530640,5.0,101.88,101.82,11.73]
[1646238530840,5.0,101.88,101.82,11.98]
[1646238531041,20.7371,101.89,101.83,43.90119577]
[1646238531240,20.7371,101.89,101.83,44.15119577]
[1646238531640,6.0,101.89,101.83,44.15119577]
[1646238533044,6.0,101.89,101.83,153.90119577]
[1646238534745,22.595,101.9,101.83,153.90119577]
[1646238534946,14.7341,101.91,101.83,212.52119577]
[1646238535145,14.7314,101.93,101.83,214.89441419]
[1646238535346,14.7314,101.93,101.83,221.85241419]
[1646238535546,14.7314,101.93,101.85,98.02]
[1646238535744,14.7314,101.93,101.87,98.02]
[1646238535945,14.7314,101.93,101.88,48.85525012]
[1646238536146,14.7283,101.95,101.88,147.12525012]
[1646238536943,14.7283,101.95,101.88,49.10525012]
[1646238537545,14.7283,101.95,101.88,158.85525012]
[1646238537746,48.1366,101.96,101.88,158.85525012]
[1646238538348,48.1366,101.96,101.89,3.924]
[1646238538649,6.0,101.95,101.9,159.98387397]
[1646238538848,19.7256,101.97,101.9,160.23387397]
[1646238539247,6.0,101.96,101.9,160.23387397]
[1646238541050,6.0,101.96,101.9,159.98387397]
[1646238541252,7.03347035,101.96,101.9,61.96387397]
[1646238541450,14.7275,101.95,101.9,61.96387397]
[1646238542351,6.0,101.94,101.9,61.96387397]
[1646238542551,6.0,101.94,101.9,62.21387397]
[1646238542951,14.7253,101.97,101.9,62.21387397]
[1646238543150,6.0,101.96,101.9,62.21387397]
[1646238544051,6.0,101.96,101.9,159.98387397]
[1646238544254,6.0,101.96,101.9,160.23387397]
[1646238544450,14.7227,101.99,101.9,160.23387397]
[1646238544653,6.0,101.98,101.9,160.23387397]
[1646238547752,6.0,101.98,101.9,220.85027457]
[1646238547951,51.7606,102.0,101.9,220.85027457]
[1646238548556,55.53637785,102.0,101.9,220.85027457]
[1646238549554,55.53637785,102.0,101.9,162.23027457]
[1646238549754,55.53637785,102.0,101.9,160.23387397]
[1646238549954,55.53637785,102.0,101.9,183.66147397]
[1646238550154,55.53637785,102.0,101.9,183.41147397]
[1646238550557,55.53637785,102.0,101.9,85.39147397]
[1646238551160,0.63692589,101.98,101.9,85.39147397]
[1646238551559,6.63692589,101.98,101.9,85.39147397]
[1646238551758,6.63692589,101.98,101.9,61.96387397]
[1646238551958,6.63692589,101.98,101.9,50.23387397]
[1646238552161,3.77577785,101.96,101.9,50.23387397]
[1646238552359,6.0,101.97,101.9,50.23387397]
[1646238552559,14.728,101.95,101.9,50.23387397]
[1646238553158,14.728,101.95,101.9,50.48387397]
[1646238554060,24.97184396,101.97,101.9,50.48387397]
[1646238554260,6.0,101.97,101.9,148.25387397]
[1646238554467,6.0,101.97,101.9,160.23387397]
[1646238554666,46.7606,102.0,101.9,64.762914]
[1646238554861,6.0,101.99,101.9,64.762914]
[1646238555061,6.0,101.99,101.9,62.21387397]
[1646238555261,4.15420351,101.96,101.9,62.21387397]
[1646238555465,4.15420351,101.96,101.9,61.96387397]
[1646238555868,4.15420351,101.96,101.88,35.7379]
[1646238556165,14.729,101.94,101.88,35.9879]
[1646238556463,14.729,101.94,101.88,11.98]
[1646238556863,14.729,101.94,101.88,57.54450208]
[1646238557764,14.729,101.94,101.88,11.98]
[1646238557966,14.7304,101.93,101.88,11.98]
[1646238558166,14.7304,101.93,101.87,3.924]
[1646238558868,14.7304,101.93,101.87,53.70753572]
[1646238560166,14.7319,101.92,101.87,53.70753572]
[1646238560368,57.48340351,101.96,101.84,37.76344003]
[1646238560572,25.32641788,101.95,101.79,74.2734188]
[1646238560769,1.34681884,101.94,101.8,34.7964]
[1646238560968,0.35295452,101.93,101.8,34.7964]
[1646238561269,5.0,101.9,101.81,156.81730989]
[1646238561469,5.0,101.9,101.81,168.54730989]
[1646238561670,19.7358,101.9,101.81,168.54730989]
[1646238561868,14.7358,101.9,101.81,168.54730989]
[1646238562067,14.7358,101.9,101.81,171.34634992]
[1646238563170,14.7358,101.9,101.81,186.07974992]
[1646238563371,23.4495,101.91,101.81,246.95152632]
[1646238563572,6.0,101.9,101.81,259.82408246]
[1646238563774,23.4745,101.92,101.83,149.14728725]
[1646238563973,6.0,101.91,101.85,98.02]
[1646238564171,6.0,101.91,101.86,147.05011112]
[1646238564371,6.0,101.91,101.86,159.03011112]
[1646238564572,22.94,101.93,101.86,159.03011112]
[1646238564771,6.0,101.92,101.86,159.03011112]
[1646238566173,6.0,101.93,101.86,159.03011112]
[1646238569076,6.0,101.93,101.87,2.54904003]
[1646238569274,44.248,101.96,101.89,98.02]
[1646238569473,44.248,101.96,101.89,110.0]
[1646238569972,44.248,101.96,101.9,57.04368745]
[1646238570395,44.248,101.96,101.9,57.29368745]
[1646238571774,44.248,101.96,101.9,155.31368745]
[1646238571974,24.5209,101.96,101.9,169.59272748]
[1646238572974,24.5209,101.96,101.9,71.57272748]
[1646238573175,24.5209,101.96,101.9,69.02368745]
[1646238573374,24.5209,101.96,101.9,68.77368745]
[1646238573576,7.13620188,101.95,101.9,69.02368745]
[1646238573875,7.13620188,101.95,101.9,68.77368745]
[1646238574079,21.86410188,101.95,101.9,11.73]
[1646238574275,21.86410188,101.95,101.88,11.73]
[1646238574475,21.86410188,101.95,101.88,11.98]
[1646238575079,21.86410188,101.95,101.89,47.56634281]
[1646238575275,21.86410188,101.95,101.89,47.81634281]
[1646238575574,20.7279,101.95,101.89,47.56634281]